[Event "1000GM Schev-G1 March 2024"]
[Site "Santa Clara"]
[Date "2024.03.10"]
[Round "3.5"]
[White "Yan, Nathan"]
[Black "Heimann, Mark"]
[Result "0-1"]
[ECO "B11"]
[WhiteElo "2185"]
[BlackElo "2435"]
[Annotator "TA"]
[PlyCount "102"]
[EventDate "2024.03.06"]
[EventType "schev"]
[EventCountry "USA"]
[SourceTitle "playchess.com"]
[Source "ChessBase"]
[SourceQuality "1"]
[TimeControl "5400+30"]

{[%evp 9,102,28,50,39,43,36,39,53,50,18,25,22,27,18,25,8,20,-14,-20,-21,-22,-35,-33,-41,-31,-35,-14,-14,-23,-35,-41,-24,-31,-57,0,-53,-61,-68,0,-4,0,0,0,-5,-7,-18,-16,-17,-18,-23,-18,-20,-35,-262,0,0,0,0,0,0,0,0,0,0,0,-18,-47,-47,-77,-19,-12,-80,-51,-67,-5,-8,0,0,0,-8,-13,-672,-672,-672,-621,-606,-600,-599,-599,-599,-599,-29980,-29980,-29980,-29980]} 1. e4 {[%emt 0:04:40]} c6 {[%emt 0:00:04]} 2. Nc3 {[%emt 0:01:33]} d5 {[%emt 0:00:07]} 3. Nf3 {[%emt 0:00:38]} dxe4 {[%emt 0:00:28]} 4. Nxe4 {[%emt 0:00:02]} Nf6 {[%emt 0:00:14]} 5. Qe2 {[%emt 0:00:11]} Na6 {[%emt 0:00:24]} 6. d4 {[%emt 0:05:44]} Nxe4 {[%emt 0:01:44]} 7. Qxe4 {[%emt 0:00:17]} Qd5 {[%emt 0:00:05]} 8. Qxd5 {[%emt 0:02:05] White is slightly better.} cxd5 {[%emt 0:00:04]} 9. Ne5 {[%emt 0:02:11]} Nb8 {[%emt 0:00:13]} 10. Bb5+ {[%emt 0:06:30]} Nd7 {[%emt 0:00:22]} 11. O-O {[%emt 0:01:08]} f6 {[%emt 0:04:02]} 12. Nxd7 {[%emt 0:03:10]} Bxd7 {[%emt 0:00:06]} 13. Bxd7+ {[%emt 0:00:22]} Kxd7 {[%emt 0:00:06]} 14. Bf4 {[%emt 0:00:22]} e6 {[%emt 0:01:06]} 15. Rfe1 {[%emt 0:00:52]} b5 {[%emt 1:28:55]} 16. Kf1 {[%emt 0:08:28]} g5 {[%emt 0:00:00]} 17. Bg3 {[%emt 0:02:12]} g4 {[%emt 0:00:00]} 18. Ke2 {[%emt 0:02:02]} h5 {[%emt 0:00:00]} 19. Kd3 {[%emt 0:01:48]} h4 {[%emt 0:00:00]} 20. Bf4 {[%emt 0:00:05]} Rh5 {[%emt 0:00:00]} 21. a4 {[%emt 0:02:00]} Rf5 {[%emt 0:00:00]} (21... b4 $1 $15) 22. g3 {[%emt 0:00:49]} ({White should play} 22. Be3 $1 $11) 22... b4 $15 {[%emt 0:00:00]} 23. c3 {[%emt 0:02:33]} bxc3 {[%emt 0:00:00]} ({Better is} 23... Bd6 $15 24. Bxd6 Kxd6 25. cxb4 Rc8 (25... Rxf2 $2 26. b5 $19) 26. gxh4 Rxf2) 24. bxc3 $11 {[%emt 0:00:17]} Bd6 {[%emt 0:00:00]} 25. Be3 {[%emt 0:01:11]} Rc8 {[%emt 0:00:00]} 26. Rab1 {[%emt 0:00:29]} Rc7 {[%emt 0:00:00]} 27. Rb5 {[%emt 0:02:26]} Rf3 {[%emt 0:00:00]} 28. Reb1 {[%emt 0:03:51]} f5 {[%emt 0:00:00]} 29. Rb8 {[%emt 0:00:37]} e5 {[%emt 0:00:00]} 30. dxe5 {[%emt 0:07:41]} (30. Ke2 {simplifies} f4 31. gxf4 exf4 32. Bd2) 30... Bxe5 {[%emt 0:00:00]} 31. R1b7 $2 {[%emt 0:00:20]} (31. R8b7 $15) 31... Kc6 $2 {[%emt 0:00:00]} (31... Bxc3 $19 32. Rb5 d4 33. Rd5+ Ke6 34. Rxd4 Bxd4 35. Kxd4 Rd7+ 36. Kc5 f4 37. Bxf4 Rxf2) 32. Rxc7+ {[%emt 0:04:56]} Bxc7 {[%emt 0:00:00][%mdl 4096] Endgame. KRB-KRB} 33. Rf8 {[%emt 0:02:09]} hxg3 {[%emt 0:00:00]} 34. hxg3 {[%emt 0:00:19]} Bb6 {[%emt 0:00:00]} 35. Rf6+ {[%emt 0:00:55]} Kd7 {[%emt 0:00:00]} 36. Ke2 {[%emt 0:04:29]} Ke7 {[%emt 0:00:00]} 37. Rh6 {[%emt 0:01:54]} Bxe3 {[%emt 0:00:00] KRB-KR} 38. Rh7+ {[%emt 0:00:16]} Kf6 {[%emt 0:00:00]} 39. fxe3 {[%emt 0:00:06]} Rxg3 {[%emt 0:00:00] White must now prevent ...Rg2+.} 40. Rxa7 $17 {[%emt 0:00:10] KR-KR} Rg2+ {[%emt 0:00:00]} 41. Kd3 {[%emt 0:01:21]} Ra2 {[%emt 0:00:00]} (41... g3 $15 42. Ra8 Kg7 43. Ra7+ Kg6) 42. Ra8 $1 $11 {[%emt 0:01:42]} Kg5 {[%emt 0:00:00]} 43. Kd4 {[%emt 0:00:36]} g3 {[%emt 0:00:00] ...Kg4 is the strong threat.} 44. Kxd5 {[%emt 0:01:12]} Kg4 {[%emt 0:00:00] Threatens to win with ...g2.} 45. Ke5 $2 {[%emt 0:00:48][%mdl 8192] [#]} (45. Rg8+ $11 Kf3 46. Rg5) 45... Re2 $1 $19 {[%emt 0:00:00]} 46. Rg8+ {[%emt 0:15:32]} Kf3 {[%emt 0:00:00]} 47. Kxf5 {[%emt 0:00:32][%cal Oe3e4]} Rxe3 {[%emt 0:00:00]} (47... Kxe3 $2 {loses.} 48. Rxg3+ Kf2 49. Rh3 $18) 48. c4 {[%emt 0:03:16]} Rc3 {[%emt 0:00:00][%cal Og3g2]} 49. Rg4 {[%emt 0:03:02]} g2 {[%emt 0:00:00] ( -> ...Kf2)} 50. Rf4+ {[%emt 0:01:08]} Ke2 {[%emt 0:00:00]} 51. Rg4 {[%emt 0:01:09] [#]} Kf2 $1 {[%emt 0:00:00] Weighted Error Value: White=0.38/Black=0.19 (very precise) .  Loses game:     	White=2     	---        Missed win:     	---       	Black=1      Mistake:       	White=1     	Black=3      Inaccurate:     	White=4     	---        OK:         	White=13    	Black=19     Best:        	White=3     	Black=3      Strong:       	White=1     	Black=1} 0-1

[Event "1000GM Schev-G1 March 2024"]
[Site "Santa Clara"]
[Date "2024.03.10"]
[Round "4.2"]
[White "Arenas, David"]
[Black "Arutla, Aditya"]
[Result "1/2-1/2"]
[ECO "C67"]
[WhiteElo "2368"]
[BlackElo "2239"]
[Annotator "TA"]
[PlyCount "47"]
[EventDate "2024.03.06"]
[EventType "schev"]
[EventCountry "USA"]
[SourceTitle "playchess.com"]
[Source "ChessBase"]
[SourceQuality "1"]
[TimeControl "5400+30"]

{[%evp 16,47,29,14,14,16,29,4,18,29,32,0,6,6,27,-11,35,25,35,16,39,0,0,0,0,-27,0,-40,-13,-25,-29,-24,0,0]} 1. e4 {[%emt 0:05:17]} e5 {[%emt 0:00:14]} 2. Nf3 {[%emt 0:00:22]} Nc6 {[%emt 0:00:07]} 3. Bb5 {[%emt 0:00:14]} Nf6 {[%emt 0:00:10]} 4. O-O {[%emt 0:03:20]} Nxe4 {[%emt 0:00:09]} 5. d4 {[%emt 0:00:12]} Nd6 {[%emt 0:00:20]} 6. Bxc6 {[%emt 0:00:05]} dxc6 {[%emt 0:00:03]} 7. dxe5 {[%emt 0:00:04]} Nf5 {[%emt 0:00:07]} 8. Qxd8+ {[%emt 0:00:02]} Kxd8 {[%emt 0:00:02]} 9. h3 {[%emt 0:00:08]} h5 {[%emt 0:00:55]} 10. Rd1+ {[%emt 0:01:09]} Ke8 {[%emt 0:00:13]} 11. b3 {[%emt 0:00:13]} Be6 {[%emt 0:02:16]} 12. Nc3 {[%emt 0:00:28]} Be7 {[%emt 0:04:01]} 13. Bb2 {[%emt 0:00:24]} Rd8 {[%emt 0:01:13]} 14. Ne4 {[%emt 0:02:18]} Rd7 {[%emt 0:07:37]} 15. Ne1 {[%emt 0:12:45][%cal Bf3e1,Be1d3,Bd3f4][%mdl 32]} Kd8 {[%emt 0:09:18]} (15... b6 $11) 16. Nd3 $14 {[%emt 0:00:06]} Kc8 {[%emt 0:09:38]} 17. Nf4 {[%emt 0:00:49]} h4 {[%emt 0:08:49]} 18. Rxd7 {[%emt 0:01:53]} Bxd7 {[%emt 0:01:48]} 19. Rd1 {[%emt 0:00:12]} b6 {[%emt 0:02:06]} 20. a4 {[%emt 0:04:19]} Rh6 {[%emt 0:09:29]} 21. Bc1 {[%emt 0:01:20]} g5 {[%emt 0:02:52]} 22. Ne2 {[%emt 0:00:44]} Rg6 {[%emt 0:00:32]} 23. f3 {[%emt 0:00:07]} Ng7 {[%emt 0:05:35]} 24. Kf2 {[%emt 0:05:01] Gewichteter Fehlerwert: Weiß=0.16 (sehr präzise) /Schwarz=0.15 (sehr präzise) .  Fehler:       	---       	Schwarz=1     Ungenau:       	Weiß=5     	Schwarz=2     OK:         	Weiß=5     	Schwarz=4} 1/2-1/2

[Event "1000GM Schev-G1 March 2024"]
[Site "Santa Clara"]
[Date "2024.03.10"]
[Round "4.3"]
[White "Atwell, Rose"]
[Black "Cu Hor, Winston Darwin"]
[Result "1/2-1/2"]
[ECO "B53"]
[WhiteElo "2285"]
[BlackElo "2343"]
[Annotator "TA"]
[PlyCount "46"]
[EventDate "2024.03.06"]
[EventType "schev"]
[EventCountry "USA"]
[SourceTitle "playchess.com"]
[Source "ChessBase"]
[SourceQuality "1"]
[TimeControl "5400+30"]

{[%evp 15,46,3,9,7,39,35,29,22,62,57,64,58,85,79,108,39,50,31,31,0,0,2,0,0,0,0,0,0,0,0,0,-10,-6]} 1. e4 {[%emt 0:00:01]} c5 {[%emt 0:00:39]} 2. Nf3 {[%emt 0:00:06]} d6 {[%emt 0:00:05]} 3. d4 {[%emt 0:00:05]} cxd4 {[%emt 0:00:05]} 4. Qxd4 {[%emt 0:00:05]} Nc6 {[%emt 0:00:13]} 5. Bb5 {[%emt 0:00:06]} Bd7 {[%emt 0:00:04]} 6. Bxc6 {[%emt 0:00:06]} Bxc6 {[%emt 0:00:04]} 7. Nc3 {[%emt 0:00:09]} e5 {[%emt 0:00:05]} 8. Qd3 {[%emt 0:00:06]} h6 {[%emt 0:00:05]} 9. Nd2 {[%emt 0:00:56]} Nf6 {[%emt 1:33:40]} 10. Nc4 {[%emt 0:00:34]} Be7 {[%emt 0:00:00]} 11. Ne3 {[%emt 0:00:20] White has an edge.} g6 {[%emt 0:00:00]} 12. O-O {[%emt 0:08:51]} Rc8 {[%emt 0:00:00]} 13. a4 {[%emt 0:04:12]} Qb6 {[%emt 0:00:00]} 14. Rd1 {[%emt 0:08:59]} Qa6 {[%emt 0:00:00]} 15. b4 {[%emt 0:11:42]} ({Better is} 15. f3 $16) 15... Qxd3 $14 {[%emt 0:00:00]} 16. cxd3 {[%emt 0:00:03]} Bd7 {[%emt 0:00:00]} 17. Ned5 {[%emt 0:05:34]} Nxd5 {[%emt 0:00:00] The position is equal.} 18. Nxd5 {[%emt 0:00:02]} Be6 {[%emt 0:00:00]} 19. Be3 {[%emt 0:04:39]} Bxd5 {[%emt 0:00:00]} 20. exd5 {[%emt 0:00:03]} a6 {[%emt 0:00:00]} 21. Rdc1 {[%emt 0:05:20]} Rxc1+ {[%emt 0:00:00]} 22. Rxc1 {[%emt 0:00:20]} Kd7 {[%emt 0:00:00] Prevents Rc8.} 23. Bb6 {[%emt 0:04:08]} Rc8 {[%emt 0:00:00] Prevents Rc7+.   Weighted Error Value: White=0.11 (very precise) /Black=0.10 (very precise) .  Mistake:       	White=1     	---        Inaccurate:     	White=1     	Black=4      OK:         	White=4     	Black=8      Best:        	---       	Black=1} 1/2-1/2

[Event "1000GM Schev-G1 March 2024"]
[Site "Santa Clara"]
[Date "2024.03.10"]
[Round "4.4"]
[White "Guo, Ethan"]
[Black "Heimann, Mark"]
[Result "1/2-1/2"]
[ECO "B11"]
[WhiteElo "2227"]
[BlackElo "2435"]
[Annotator "TA"]
[PlyCount "85"]
[EventDate "2024.03.06"]
[EventType "schev"]
[EventCountry "USA"]
[SourceTitle "playchess.com"]
[Source "ChessBase"]
[SourceQuality "1"]
[TimeControl "5400+30"]

{[%evp 9,85,29,14,16,16,24,18,18,21,7,15,12,4,2,31,-67,-48,-59,-58,-70,-42,-99,-97,-114,-99,-107,-66,-80,-48,-36,0,-23,0,-88,-63,-206,-185,-219,-183,-365,-56,-229,-215,-222,0,0,94,106,310,260,331,316,323,308,361,302,301,305,302,316,499,513,537,534,766,729,1048,1066,918,58,65,65,65,65,65,65,61,69]} 1. e4 {[%emt 0:04:08][%cal Be2e4,Be4e5][%mdl 32]} c6 {[%emt 0:00:03]} 2. Nc3 {[%emt 0:00:16]} d5 {[%emt 0:00:03]} 3. Nf3 {[%emt 0:00:11]} Nf6 {[%emt 0:00:05]} 4. e5 {[%emt 0:00:09]} Ne4 {[%emt 0:00:06]} 5. Ne2 {[%emt 0:00:11]} Qb6 {[%emt 0:00:06][%csl Ge4][%cal Rb6f2]} 6. d4 {[%emt 0:00:09]} e6 {[%emt 0:00:06]} 7. Ng3 {[%emt 0:00:38]} c5 {[%emt 0:00:06]} 8. c3 {[%emt 0:01:14] Die Stellung ist ausgeglichen.} Nc6 {[%emt 0:00:52]} 9. Bd3 {[%emt 0:06:43]} Nxg3 {[%emt 0:00:56]} 10. hxg3 {[%emt 0:01:16]} cxd4 {[%emt 0:00:05]} 11. cxd4 {[%emt 0:00:23]} Bd7 {[%emt 0:00:04]} 12. Rh4 {[%emt 0:10:33]} ({Besser ist} 12. Kf1 $14) 12... Be7 $15 {[%emt 0:03:31]} 13. Rg4 {[%emt 0:09:17]} g6 {[%emt 0:01:08]} 14. Bg5 {[%emt 0:06:03]} Qxb2 {[%emt 0:07:06]} 15. Bxe7 {[%emt 0:56:49]} (15. Rb1 $15 Qxa2 16. Rf4) 15... Nxe7 $17 {[%emt 0:00:18]} 16. Rf4 {[%emt 0:00:00]} h6 {[%emt 0:03:20]} 17. Rb1 {[%emt 0:00:00]} Qc3+ {[%emt 0:01:02]} 18. Kf1 {[%emt 0:00:00]} g5 {[%emt 0:02:12]} 19. Rf6 {[%emt 0:00:00]} Bc6 {[%emt 0:01:52]} 20. Nh2 {[%emt 0:00:00]} h5 {[%emt 0:04:06][%cal Oh5h4]} (20... Qxd4 21. Rxe6 h5 (21... fxe6 $2 22. Bg6+ Nxg6 23. Qxd4 $18) 22. Nf3 $11) 21. Nf3 {[%emt 0:00:00]} (21. Kg1 $11) 21... Ng8 $1 {[%emt 0:04:05]} 22. Nxg5 {[%emt 0:00:00]} (22. Rb3 $15 Qa5 23. Qc1 (23. Rxf7 $2 Kxf7 24. Nxg5+ Ke7 $19)) 22... Nxf6 $19 {[%emt 0:01:12]} (22... Qxd4 23. Rf4 (23. Rxf7 Qxe5 24. Qd2 Nh6 $18) 23... Qxe5 24. Nxf7 $18) 23. exf6 {[%emt 0:00:00] [#]} h4 $1 {[%emt 0:05:15] Droht ...hxg3 und aus.} (23... Qxd4 24. Nxf7 (24. Nxe6 $2 Qe5 $17) 24... Rf8 (24... Kxf7 $2 25. Bg6+ Kxg6 26. Qxd4 $18) 25. Ng5 Qxf6 (25... Rxf6 $2 26. Bg6+ Rxg6 27. Qxd4 $18) 26. Qd2 $17) 24. Rb3 $2 {[%emt 0:00:00]} (24. g4 {ist eine bessere Verteidigung.} h3 (24... Qxd4 25. Nxf7 Qxf6 26. Nxh8 $15) 25. Nxh3) 24... Qa5 $2 {[%emt 0:00:23]} (24... Qxd4 $19 {Droht stark ...hxg3.} 25. g4 Qf4 (25... Qxf6 $2 26. Qc1 $19)) 25. Qe2 $2 {[%emt 0:00:00]} ({Günstiger ist} 25. g4 $15 Qxa2 (25... Ba4 $2 26. Rxb7 Bd7 27. Nxf7 $18) 26. Kg1) 25... hxg3 {[%emt 0:00:55]} 26. fxg3 {[%emt 0:00:00][%cal Og5e6] [#] Nxe6! wäre nun fies.} Qc7 $2 {[%emt 0:10:23]} (26... Qd8 $1 $19 {[%cal Rd8f6]} 27. Nh7 (27. Qe5 $2 Rh6 $19) 27... Qc7 (27... Rxh7 $2 28. Bxh7 Qxf6+ 29. Qf2 $19)) 27. Bg6 $1 $11 {[%emt 0:00:00]} O-O-O {[%emt 0:08:47]} (27... fxg6 $11 28. f7+ (28. Qxe6+ Kf8 $17) 28... Ke7 29. Qxe6+ Kd8 30. Qxg6 Qe7 31. Ne6+ Kd7 32. Nc5+ Kc7 33. Ne6+ Kd7) 28. Nxf7 $16 {[%emt 0:00:48]} ({Bitte nicht} 28. Bxf7 $6 Ba4 29. Bxe6+ (29. Nxe6 $2 {zu gefräßig.} Qxf7 30. Nxd8 Qxf6+ 31. Qf3 Qxd4 $19) (29. Qxe6+ Bd7 $11) 29... Kb8 $11) 28... Rh1+ {[%emt 0:00:03]} (28... Rhg8 $16 {war angesagt.}) 29. Kf2 $18 {[%emt 0:00:09]} Rf8 {[%emt 0:04:22]} 30. Qxe6+ {[%emt 0:00:06] Schwarz hat schwache schwarze Felder} Kb8 {[%emt 0:00:05][%cal Bc8b8,Bb8c7,Bc7d6][%mdl 32]} 31. Qe7 {[%emt 0:03:29] Aktives Gegenspiel!} Rc8 {[%emt 0:01:41]} 32. Qxc7+ {[%emt 0:01:35]} Kxc7 {[%emt 0:00:02]} 33. Ne5 {[%emt 0:00:13]} Rf8 {[%emt 0:15:48]} 34. f7 {[%emt 0:00:16]} Rh6 {[%emt 0:01:30]} (34... Rd1 {kämpft weiter.} 35. Nxc6 Kxc6) 35. Rf3 {[%emt 0:00:34]} Bd7 {[%emt 0:00:14]} 36. Bf5 {[%emt 0:01:07]} Bxf5 {[%emt 0:02:35]} 37. Rxf5 {[%emt 0:00:04][%mdl 4096] Endspiel. KRR-KRN} Kd6 {[%emt 0:00:05]} 38. g4 {[%emt 0:01:08]} Ke6 {[%emt 0:00:26]} 39. g5 $2 {[%emt 0:01:47]} (39. Kg3 $18 Rh1 40. Rf3) 39... Kxf5 $14 {[%emt 0:00:17] Weiß steht etwas besser.} 40. gxh6 {[%emt 0:00:04]} Kg5 {[%emt 0:00:05]} 41. h7 $1 {[%emt 0:00:36] Schach mit Chili.} Kh6 {[%emt 0:00:03]} 42. h8=Q+ {[%emt 0:00:10]} Rxh8 {[%emt 0:00:02]} 43. Nd7 {[%emt 0:00:06] Gewichteter Fehlerwert: Weiß=0.46/Schwarz=0.44.  Verlustzug:     	Weiß=1     	---        Gewinn verpasst:   	---       	Schwarz=2     Fehler:       	Weiß=5     	Schwarz=3     Ungenau:       	---       	Schwarz=5     OK:         	Weiß=10    	Schwarz=10    Bester:       	Weiß=3     	Schwarz=7     Stark:        	Weiß=2     	Schwarz=2} 1/2-1/2

[Event "1000GM Schev-G1 March 2024"]
[Site "Santa Clara"]
[Date "2024.03.10"]
[Round "4.5"]
[White "Stearman, Josiah"]
[Black "Yan, Nathan"]
[Result "1/2-1/2"]
[ECO "E40"]
[WhiteElo "2464"]
[BlackElo "2185"]
[Annotator "TA"]
[PlyCount "58"]
[EventDate "2024.03.06"]
[EventType "schev"]
[EventCountry "USA"]
[SourceTitle "playchess.com"]
[Source "ChessBase"]
[SourceQuality "1"]
[TimeControl "5400+30"]

{[%evp 11,58,6,8,0,27,21,22,27,20,26,30,30,50,37,30,36,20,6,39,22,12,13,16,14,29,22,36,22,14,12,14,14,18,9,2,-6,-10,-83,-79,-75,-24,-16,-15,-10,-17,-69,-62,-116,-33]} 1. c4 {[%emt 0:17:34]} e6 {[%emt 0:00:28]} 2. Nc3 {[%emt 0:00:08]} d5 {[%emt 0:00:09]} 3. d4 {[%emt 0:00:08]} Bb4 {[%emt 0:00:08]} 4. e3 {[%emt 0:03:56]} Nf6 {[%emt 0:00:41]} 5. a3 {[%emt 0:02:02]} Bxc3+ {[%emt 0:02:42]} 6. bxc3 {[%emt 0:00:04]} b6 {[%emt 0:00:42]} 7. Bd3 {[%emt 0:04:16]} Ba6 {[%emt 0:02:02]} 8. cxd5 {[%emt 0:02:19] Strongly threatening Bxa6.} Bxd3 {[%emt 0:01:49]} 9. Qxd3 {[%emt 0:00:06] And now dxe6 would win. The position is equal.} exd5 {[%emt 0:00:54]} 10. c4 {[%emt 0:01:02]} O-O {[%emt 0:03:10]} 11. Ne2 {[%emt 0:00:46]} Nc6 {[%emt 0:06:31]} 12. O-O {[%emt 0:02:07]} dxc4 {[%emt 0:02:09]} 13. Qxc4 {[%emt 0:00:05]} Na5 {[%emt 0:00:36]} 14. Qc2 {[%emt 0:00:36]} c5 {[%emt 0:04:11]} 15. Bb2 {[%emt 0:04:54]} Rc8 {[%emt 0:05:02]} 16. Rad1 {[%emt 0:07:22][%cal Od4d5]} cxd4 {[%emt 0:02:51]} 17. Qb1 {[%emt 0:00:08]} Nc6 {[%emt 0:07:24]} 18. Nxd4 {[%emt 0:04:57]} Nxd4 {[%emt 0:00:32]} 19. Bxd4 {[%emt 0:00:59]} Qe7 {[%emt 0:02:17] Dodges Bc5} 20. a4 {[%emt 0:01:27][%cal Oa4a5]} Ne4 {[%emt 0:03:41] [#]} 21. a5 $1 {[%emt 0:03:53]} bxa5 {[%emt 0:02:23]} 22. Qa1 {[%emt 0:00:35]} (22. Qb5 {simplifies} Nc3 23. Bxc3 Rxc3 24. Qxa5 Rc5 25. Qa6) 22... Qg5 {[%emt 0:02:13]} 23. Be5 {[%emt 0:25:59]} Rfe8 {[%emt 0:10:07]} 24. Rd5 {[%emt 0:03:28] [#]} (24. Bd4 $11 {keeps the balance.}) 24... Nc3 $1 $17 {[%emt 0:10:02]} 25. f4 {[%emt 0:00:17] [#]} Qh5 {[%emt 0:01:07]} (25... Ne2+ $1 $17 26. Kh1 Qh4 27. Bxg7 Ng3+ (27... Rxe3 28. Bf6 $11) 28. Kg1 Ne2+ (28... Nxf1 29. Rg5 $17) 29. Kh1 Ng3+ (29... Rxe3 30. Bf6 $11) 30. Kg1 Nxf1) 26. Rd2 $1 $11 {[%emt 0:00:38]} Ne4 {[%emt 0:03:26]} 27. Ra2 {[%emt 0:00:31]} Qg6 {[%emt 0:05:32]} 28. Bd4 {[%emt 0:03:29]} ({White should try} 28. Qe1 $11) 28... Rc4 $1 $15 {[%emt 0:05:33]} 29. Qb1 {[%emt 0:03:38]} (29. Qd1 $15) 29... Nc3 {[%emt 0:02:58] Weighted Error Value: White=0.15 (very precise) /Black=0.08 (flawless) .  Mistake:       	White=3     	Black=2      Inaccurate:     	---       	Black=2      OK:         	White=4     	Black=9      Best:        	White=2     	Black=1      Strong:       	White=1     	Black=1      Brilliant:      	---       	Black=1} (29... Rec8 $17 30. Bxa7 (30. Rxa5 $2 {is the wrong capture.} Rc2 $19) 30... h5) 1/2-1/2

[Event "1000GM Schev-G1 March 2024"]
[Site "Santa Clara"]
[Date "2024.03.11"]
[Round "5.2"]
[White "Cu Hor, Winston Darwin"]
[Black "Arutla, Aditya"]
[Result "1-0"]
[ECO "A09"]
[WhiteElo "2343"]
[BlackElo "2239"]
[Annotator "TA"]
[PlyCount "59"]
[EventDate "2024.03.06"]
[EventType "schev"]
[EventCountry "USA"]
[SourceTitle "playchess.com"]
[Source "ChessBase"]
[SourceQuality "1"]
[TimeControl "5400+30"]

{[%evp 12,59,-7,-10,-7,-47,25,27,36,50,52,53,45,35,35,37,53,51,67,62,70,65,93,84,166,153,317,303,332,233,266,118,159,138,483,489,458,467,486,486,984,933,998,995,936,947,29996,29994,29994,29995]} 1. Nf3 {[%emt 0:00:04]} d5 {[%emt 0:05:04]} 2. c4 {[%emt 0:00:13]} d4 {[%emt 0:00:08]} 3. e3 {[%emt 0:00:06]} Nc6 {[%emt 0:00:11]} 4. exd4 {[%emt 0:00:09]} Nxd4 {[%emt 0:00:02]} 5. Nxd4 {[%emt 0:00:09]} Qxd4 {[%emt 0:00:02]} 6. Nc3 {[%emt 0:00:07]} c6 {[%emt 0:00:28]} 7. d3 {[%emt 0:00:10]} Nh6 {[%emt 0:00:09]} 8. h3 {[%emt 0:03:20]} g6 {[%emt 0:04:21]} (8... Nf5 $15) 9. Be3 $11 {[%emt 0:00:15]} Qd8 {[%emt 0:01:52] Weiß hat minimalen Vorteil.} 10. g4 {[%emt 0:00:03] Wehrt Nf5 ab} Bg7 {[%emt 0:04:41]} 11. Qd2 {[%emt 0:00:53]} Ng8 {[%emt 0:00:32]} 12. d4 {[%emt 0:02:22]} h5 {[%emt 0:09:39]} 13. Rg1 $36 {[%emt 0:02:59][%mdl 2048] Schwarz steht unter Druck.} hxg4 {[%emt 0:02:35]} 14. hxg4 {[%emt 0:00:34]} Qa5 {[%emt 0:08:07]} 15. O-O-O {[%emt 0:00:35]} Bd7 {[%emt 0:04:28]} 16. Kb1 {[%emt 0:04:55]} O-O-O {[%emt 0:03:11]} 17. Be2 {[%emt 0:03:34]} Be6 {[%emt 0:06:22]} (17... f5 $16) 18. Qc2 {[%emt 0:03:00] Und d5 würde nun gewinnen.} Kb8 $2 {[%emt 0:07:39] [#]} (18... Nf6 $16 19. d5 Bd7) 19. d5 $1 $18 {[%emt 0:03:39][%mdl 512]} Bd7 {[%emt 0:05:52]} (19... cxd5 $6 20. Nxd5 Bxd5 21. cxd5 $16 (21. Rxd5 Rxd5 22. cxd5 Nf6 $16)) 20. Bf4+ {[%emt 0:04:12]} Ka8 {[%emt 0:00:51] [#]} 21. Bf3 {[%emt 0:00:42]} (21. dxc6 $1 $18 {ist der präzise Gewinnweg.} Bxc6 22. Nb5) 21... Nf6 {[%emt 0:03:07]} 22. Qe2 {[%emt 0:09:36]} cxd5 {[%emt 0:06:04][%mdl 8192]} (22... c5 $16 {leistet mehr Widerstand.} 23. Be5 (23. Qxe7 Ng8 $18) 23... Rh3) 23. Nxd5 {[%emt 0:02:29]} ({Schwächer ist} 23. cxd5 Rh3 $16) ({Nicht} 23. Qxe7 Ng8 24. Qe3 (24. Qxf7 Bxc3 25. Rd3 Be8 $11) 24... Nf6 $18) (23. Bxd5 Nxg4 24. Nb5 (24. Rxg4 Bf5+ 25. Ka1 Bxg4 $15) 24... e5 $16) 23... Nxd5 {[%emt 0:26:35]} 24. Rxd5 {[%emt 0:00:21]} Qb6 {[%emt 0:00:00] [#]} 25. c5 $1 {[%emt 0:05:17]} (25. Qxe7 $2 Qxb2#) 25... Qb4 {[%emt 0:00:00]} (25... Bb5 $142) 26. Rgd1 {[%emt 0:03:21]} Qxf4 {[%emt 0:00:00]} 27. Rxd7 {[%emt 0:02:47]} Rxd7 {[%emt 0:00:00]} 28. Rxd7 {[%emt 0:00:25][%cal Oe2e7] jetzt Qxe7! und aus.} Bxb2 {[%emt 0:02:30]} 29. Bxb7+ {[%emt 0:02:49]} Kb8 {[%emt 0:00:00]} 30. Qxb2 {[%emt 0:00:21] Gewichteter Fehlerwert: Weiß=0.18 (sehr präzise) /Schwarz=0.76.  Verlustzug:     	---       	Schwarz=2     Fehler:       	Weiß=1     	Schwarz=3     Ungenau:       	Weiß=1     	Schwarz=2     OK:         	Weiß=5     	Schwarz=4     Bester:       	Weiß=2     	Schwarz=2     Stark:        	Weiß=1     	---        Brilliant:      	Weiß=1     	---} 1-0